fUST/lending_fUST_20240516
["ID","MTS","AMOUNT","RATE_DAILY","PERIOD"]
[327125895,1715844632565,-500.0,0.00018,2]
[327125896,1715844632574,-1000.0,0.00018,2]
[327125897,1715844632588,-6087.67,0.00018,2]
[327125898,1715844632598,-711.55,0.00018,2]
[327125899,1715844632607,-5491.48,0.00018,2]
[327125900,1715844632618,-1110.67,0.00018,2]
[327125901,1715844632629,-966.31,0.00018,2]
[327125902,1715844632641,-3285.9,0.00018001,2]
[327125903,1715844632650,-532.23376345,0.00018001,2]
[327125904,1715844632659,-500.0,0.00018001,2]
[327125905,1715844632671,-151.0,0.00018001,2]
[327125906,1715844632681,-5804.44,0.00018001,2]
[327125907,1715844632691,-503.39211114,0.00018001,2]
[327125908,1715844632700,-1031.43,0.00018001,2]
[327125909,1715844632710,-151.0,0.00018001,2]
[327125910,1715844632720,-500.0,0.00018001,2]
[327125911,1715844632731,-151.0,0.00018001,2]
[327125912,1715844632741,-1671.75,0.00018001,2]
[327125913,1715844632751,-1897.66,0.00018001,2]
[327125914,1715844632762,-3065.51,0.00018001,2]
[327125915,1715844632772,-500.0,0.00018001,2]
[327125916,1715844632783,-151.0,0.00018001,2]
[327125917,1715844632793,-3223.911068,0.00018001,2]
[327125918,1715844632802,-1023.76786509,0.00018001,2]
[327125936,1715844634011,-2200.14320291,0.00018001,2]
[327125937,1715844634020,-500.0,0.00018001,2]
[327125938,1715844634030,-151.0,0.00018001,2]
[327125939,1715844634039,-618.77,0.00018001,2]
[327125940,1715844634049,-601.46,0.00018001,2]
[327125941,1715844634058,-3223.911068,0.00018001,2]
[327125942,1715844634067,-3223.911068,0.00018001,2]
[327125943,1715844634076,-151.0,0.00018001,2]
[327125944,1715844634085,-151.546344,0.00018001,2]
[327125945,1715844634094,-151.0,0.00018001,2]
[327125946,1715844634103,-500.0,0.00018001,2]
[327125947,1715844634112,-851.07,0.00018001,2]
[327125948,1715844634122,-500.0,0.00018001,2]
[327125949,1715844634131,-813.81,0.00018001,2]
[327125950,1715844634140,-500.0,0.00018001,2]
[327125951,1715844634149,-500.0,0.00018001,2]
[327125952,1715844634158,-151.0,0.00018001,2]
[327125953,1715844634167,-151.0,0.00018001,2]
[327125954,1715844634176,-151.0,0.00018001,2]
[327125955,1715844634185,-151.0,0.00018001,2]
[327125956,1715844634194,-500.0,0.00018001,2]
[327125957,1715844634203,-151.683719,0.00018001,2]
[327125958,1715844634211,-2325.67,0.00018001,2]
[327125959,1715844634220,-500.0,0.00018001,2]
[327125960,1715844634229,-500.0,0.00018001,2]
[327125961,1715844634238,-22412.99,0.00018001,2]
[327125962,1715844634247,-3232.622623,0.00018001,2]
[327125963,1715844634256,-3232.622623,0.00018001,2]
[327125964,1715844634265,-3232.622623,0.00018001,2]
[327125965,1715844634274,-3232.622623,0.00018001,2]
[327125966,1715844634283,-500.0,0.00018001,2]
[327125967,1715844634293,-1426.47857,0.00018001,2]
[327125968,1715844634302,-1426.47857,0.00018001,2]
[327125969,1715844634311,-1426.47857,0.00018001,2]
[327125970,1715844634320,-1426.47857,0.00018001,2]
[327125971,1715844634329,-7964.17,0.00018001,2]
[327125972,1715844634339,-151.0,0.00018001,2]
[327125973,1715844634348,-151.0,0.00018001,2]
[327125974,1715844634357,-656.92,0.00018001,2]
[327125975,1715844634366,-10070.48,0.00018001,2]
[327125976,1715844634375,-500.0,0.00018001,2]
[327125977,1715844634384,-500.0,0.00018001,2]
[327125978,1715844634393,-151.0,0.00018001,2]
[327125979,1715844634402,-151.0,0.00018001,2]
[327125980,1715844634411,-151.0,0.00018001,2]
[327125981,1715844634421,-151.0,0.00018001,2]
[327125982,1715844634430,-2246.5,0.00018001,2]
[327125983,1715844634439,-151.0,0.00018001,2]
[327125984,1715844634449,-151.0,0.00018001,2]
[327125985,1715844634458,-500.0,0.00018001,2]
[327125986,1715844634467,-3617.25,0.00018001,2]
[327125987,1715844634476,-635.28,0.00018001,2]
[327125988,1715844634487,-151.0,0.00018001,2]
[327125989,1715844634496,-151.0,0.00018001,2]
[327125990,1715844634506,-151.0,0.00018001,2]
[327125991,1715844634516,-151.0,0.00018001,2]
[327125992,1715844634525,-500.0,0.00018001,2]
[327125993,1715844634535,-934.3,0.00018001,2]
[327125994,1715844634546,-500.0,0.00018001,2]
[327125995,1715844634555,-151.0,0.00018001,2]
[327125996,1715844634565,-151.0,0.00018001,2]
[327125997,1715844634574,-151.0,0.00018001,2]
[327125998,1715844634586,-151.0,0.00018001,2]
[327125999,1715844634599,-151.0,0.00018001,2]
[327126000,1715844634608,-500.0,0.00018001,2]
[327126001,1715844634617,-1529.06,0.00018001,2]
[327126002,1715844634627,-222.81208215,0.00018001,2]
[327126003,1715844634639,-154.93768344,0.00018001,2]
[327126004,1715844634648,-694.43,0.00018001,2]
[327126005,1715844634657,-237.490141,0.00018001,2]
[327126006,1715844634669,-237.490141,0.00018001,2]
[327126007,1715844634678,-237.490141,0.00018001,2]
[327126008,1715844634688,-237.490141,0.00018001,2]
[327126009,1715844634698,-936.17,0.00018001,2]
[327126010,1715844634707,-237.490141,0.00018001,2]
[327126011,1715844634716,-237.490141,0.00018001,2]
[327126012,1715844634726,-237.490141,0.00018001,2]
[327126013,1715844634735,-500.0,0.00018001,2]
[327126014,1715844634744,-237.490141,0.00018001,2]
[327126015,1715844634755,-237.490141,0.00018001,2]
[327126016,1715844634764,-237.490141,0.00018001,2]
[327126017,1715844634773,-738.31,0.00018001,2]
[327126018,1715844634783,-500.0,0.00018001,2]
[327126019,1715844634793,-758.84,0.00018001,2]
[327126020,1715844634802,-151.0,0.00018001,2]
[327126021,1715844634812,-151.780699,0.00018001,2]
[327126022,1715844634821,-500.0,0.00018001,2]
[327126023,1715844634830,-12293.89,0.00018001,2]
[327126024,1715844634839,-12293.89,0.00018001,2]
[327126025,1715844634849,-12293.89,0.00018001,2]
[327126026,1715844634858,-500.0,0.00018001,2]
[327126027,1715844634867,-500.0,0.00018001,2]
[327126028,1715844634876,-500.0,0.00018001,2]
[327126029,1715844634885,-500.0,0.00018001,2]
[327126030,1715844634895,-500.0,0.00018001,2]
[327126031,1715844634904,-587.62,0.00018001,2]
[327126032,1715844634913,-342.765645,0.00018001,2]
[327126033,1715844634923,-500.0,0.00018001,2]
[327126034,1715844634932,-342.765645,0.00018001,2]
[327126035,1715844634942,-1114.6,0.00018001,2]
[327126036,1715844634951,-845.79,0.00018001,2]
[327126037,1715844634960,-451.13915628,0.00018001,2]
[327126038,1715844634969,-500.0,0.00018001,2]
[327126039,1715844634979,-1548.68,0.00018001,2]
[327126040,1715844634988,-305.024665,0.00018001,2]
[327126041,1715844634997,-305.024665,0.00018001,2]
[327126042,1715844635006,-4396.44,0.00018001,2]
[327126043,1715844635015,-1317.49,0.00018001,2]
[327126044,1715844635024,-1429.3,0.00018001,2]
[327126045,1715844635034,-151.0,0.00018001,2]
[327126046,1715844635043,-151.0,0.00018001,2]
[327126047,1715844635052,-151.0,0.00018001,2]
[327126048,1715844635062,-151.0,0.00018001,2]
[327126049,1715844635071,-8962.16,0.00018001,2]
[327126050,1715844635081,-151.0,0.00018001,2]
[327126051,1715844635090,-500.0,0.00018001,2]
[327126052,1715844635099,-500.0,0.00018002,2]
[327126053,1715844635108,-500.0,0.00018002,2]
[327126054,1715844635118,-500.0,0.00018002,2]
[327126055,1715844635127,-1274.56,0.00018002,2]
[327126056,1715844635137,-500.0,0.00018002,2]
[327126057,1715844635146,-500.0,0.00018002,2]
[327126058,1715844635155,-500.0,0.00018002,2]
[327126059,1715844635165,-500.0,0.00018002,2]
[327126060,1715844635174,-500.0,0.00018002,2]
[327126061,1715844635183,-500.0,0.00018002,2]
[327126062,1715844635193,-2241.61,0.00018002,2]
[327126063,1715844635203,-500.0,0.00018002,2]
[327126064,1715844635212,-500.0,0.00018002,2]
[327126065,1715844635221,-586.06,0.00018002,2]
[327126066,1715844635230,-500.0,0.00018002,2]
[327126067,1715844635240,-1009.57,0.00018002,2]
[327126068,1715844635249,-1032.4,0.00018002,2]
[327126069,1715844635258,-500.0,0.00018002,2]
[327126070,1715844635267,-500.0,0.00018002,2]
[327126071,1715844635276,-583.55215283,0.00018002,2]
[327126072,1715844635286,-500.0,0.00018002,2]
[327126073,1715844635296,-679.01,0.00018002,2]
[327126074,1715844635304,-880.06,0.00018002,2]
[327126075,1715844635314,-500.0,0.00018002,2]
[327126076,1715844635323,-494.40996571,0.00018002,2]
[327126077,1715844635332,-500.0,0.00018002,2]
[327126078,1715844635341,-720.78,0.00018002,2]
[327126079,1715844635351,-500.0,0.00018002,2]
[327126080,1715844635359,-500.0,0.00018002,2]
[327126081,1715844635369,-500.0,0.00018002,2]
[327126082,1715844635379,-500.0,0.00018002,2]
[327126083,1715844635388,-1078.59,0.00018002,2]
[327126084,1715844635397,-678.8,0.00018002,2]
[327126085,1715844635406,-500.0,0.00018002,2]
[327126086,1715844635416,-500.0,0.00018002,2]
[327126087,1715844635425,-500.0,0.00018002,2]
[327126088,1715844635434,-822.26,0.00018002,2]
[327126089,1715844635444,-151.0,0.00018002,2]
[327126090,1715844635453,-500.0,0.00018002,2]
[327126091,1715844635462,-500.0,0.00018002,2]
[327126092,1715844635471,-502.70096328,0.00018002,2]
[327126093,1715844635480,-500.0,0.00018002,2]
[327126094,1715844635490,-500.0,0.00018002,2]
[327126095,1715844635499,-500.0,0.00018002,2]
[327126096,1715844635508,-504.37291695,0.00018002,2]
[327126097,1715844635517,-500.0,0.00018002,2]
[327126098,1715844635526,-500.0,0.00018002,2]
[327126099,1715844635535,-1015.73,0.00018002,2]
[327126100,1715844635546,-594.64,0.00018002,2]
[327126101,1715844635555,-500.0,0.00018002,2]
[327126102,1715844635563,-500.0,0.00018002,2]
[327126103,1715844635572,-500.0,0.00018002,2]
[327126104,1715844635582,-500.0,0.00018002,2]
[327126105,1715844635594,-500.0,0.00018002,2]
[327126106,1715844635603,-500.0,0.00018002,2]
[327126107,1715844635612,-1328.33,0.00018002,2]
[327126108,1715844635621,-500.0,0.00018002,2]
[327126109,1715844635632,-500.0,0.00018002,2]
[327126110,1715844635641,-500.0,0.00018002,2]
[327126111,1715844635651,-500.0,0.00018002,2]
[327126112,1715844635660,-720.16,0.00018002,2]
[327126113,1715844635671,-720.16,0.00018002,2]
[327126114,1715844635680,-500.0,0.00018002,2]
[327126115,1715844635690,-1011.48,0.00018002,2]
[327126116,1715844635699,-500.0,0.00018002,2]
[327126117,1715844635709,-500.0,0.00018002,2]
[327126118,1715844635719,-186.03052124,0.00018002,2]
[327126119,1715844635727,-500.0,0.00018002,2]
[327126120,1715844635736,-500.0,0.00018002,2]
[327126121,1715844635746,-506.31154369,0.00018002,2]
[327126122,1715844635755,-500.0,0.00018002,2]
[327126123,1715844635764,-500.0,0.00018002,2]
[327126124,1715844635774,-500.0,0.00018002,2]
[327126125,1715844635783,-500.0,0.00018002,2]
[327126126,1715844635794,-500.0,0.00018002,2]
[327126127,1715844635803,-500.0,0.00018002,2]
[327126128,1715844635813,-500.0,0.00018002,2]
[327126129,1715844635822,-501.65680694,0.00018002,2]
[327126130,1715844635831,-824.35,0.00018002,2]
[327126131,1715844635839,-730.83,0.00018002,2]
[327126132,1715844635849,-523.06165745,0.00018002,2]
[327126133,1715844635859,-625.27,0.00018002,2]
[327126134,1715844635868,-690.25,0.00018002,2]
[327126135,1715844635877,-500.0,0.00018002,2]
[327126136,1715844635887,-500.0,0.00018002,2]
[327126137,1715844635897,-151.0,0.00018002,2]
[327126138,1715844635906,-151.0,0.00018002,2]
[327126139,1715844636038,-151.0,0.00018002,2]
[327126140,1715844636050,-151.0,0.00018002,2]
[327126141,1715844636059,-151.0,0.00018002,2]
[327126142,1715844636069,-151.0,0.00018002,2]
[327126143,1715844636079,-500.0,0.00018002,2]
[327126144,1715844636088,-500.0,0.00018002,2]
[327126145,1715844636097,-506.18233428,0.00018002,2]
[327126146,1715844636106,-673.7,0.00018002,2]
[327126147,1715844636115,-667.99,0.00018002,2]
[327126148,1715844636125,-197.885689,0.00018002,2]
[327126149,1715844636134,-197.885689,0.00018002,2]
[327126150,1715844636143,-197.885689,0.00018002,2]
[327126151,1715844636152,-500.0,0.00018002,2]
[327126152,1715844636162,-197.885689,0.00018002,2]
[327126153,1715844636171,-197.885689,0.00018002,2]
[327126154,1715844636180,-197.885689,0.00018002,2]
[327126155,1715844636189,-500.0,0.00018002,2]
[327126156,1715844636199,-500.0,0.00018002,2]
[327126157,1715844636208,-500.0,0.00018002,2]
[327126158,1715844636217,-500.0,0.00018002,2]
[327126159,1715844636227,-500.0,0.00018002,2]
[327126160,1715844636236,-638.063135,0.00018002,2]
[327126161,1715844636245,-638.063135,0.00018002,2]
[327126162,1715844636255,-530.67,0.00018002,2]
[327126163,1715844636264,-638.063135,0.00018002,2]
[327126164,1715844636275,-638.063135,0.00018002,2]
[327126165,1715844636284,-638.063135,0.00018002,2]
[327126166,1715844636294,-638.063135,0.00018002,2]
[327126167,1715844636303,-500.0,0.00018002,2]
[327126168,1715844636313,-638.063135,0.00018002,2]
[327126169,1715844636322,-638.063135,0.00018002,2]
[327126170,1715844636332,-509.31501629,0.00018002,2]
[327126171,1715844636341,-151.0,0.00018002,2]
[327126172,1715844636351,-151.0,0.00018002,2]
[327126173,1715844636360,-151.0,0.00018002,2]
[327126174,1715844636370,-524.41,0.00018002,2]
[327126175,1715844636379,-500.0,0.00018002,2]
[327126176,1715844636389,-500.0,0.00018002,2]
[327126177,1715844636398,-504.6192332,0.00018002,2]
[327126178,1715844636407,-1171.5,0.00018002,2]
[327126179,1715844636416,-500.0,0.00018002,2]
[327126180,1715844636427,-500.0,0.00018002,2]
[327126181,1715844636436,-500.0,0.00018002,2]
[327126182,1715844636446,-500.0,0.00018002,2]
[327126183,1715844636455,-812.86,0.00018002,2]
[327126184,1715844636465,-500.0,0.00018002,2]
[327126185,1715844636475,-500.0,0.00018002,2]
[327126186,1715844636484,-151.0,0.00018002,2]
[327126187,1715844636494,-152.711957,0.00018002,2]
[327126188,1715844636503,-151.0,0.00018002,2]
[327126189,1715844636513,-151.0,0.00018002,2]
[327126190,1715844636522,-151.0,0.00018002,2]
[327126191,1715844636532,-585.37531245,0.00018002,2]
[327126192,1715844636541,-288.99168605,0.00018002,2]
[327126193,1715844636553,-500.0,0.00018002,2]
[327126194,1715844636562,-500.0,0.00018002,2]
[327126195,1715844636572,-500.0,0.00018002,2]
[327126196,1715844636581,-833.5,0.00018002,2]
[327126197,1715844636595,-151.0,0.00018002,2]
[327126198,1715844636604,-151.0,0.00018002,2]
[327126199,1715844636614,-151.097316,0.00018002,2]
[327126200,1715844636624,-500.0,0.00018002,2]
[327126201,1715844636635,-873.54,0.00018002,2]
[327126202,1715844636645,-500.0,0.00018002,2]
[327126203,1715844636655,-3223.911068,0.00018002,2]
[327126204,1715844636665,-3223.911068,0.00018002,2]
[327126205,1715844636675,-3223.911068,0.00018002,2]
[327126206,1715844636684,-151.0,0.00018002,2]
[327126207,1715844636694,-3223.911068,0.00018002,2]
[327126208,1715844636703,-151.0,0.00018002,2]
[327126209,1715844636712,-3223.911068,0.00018002,2]
[327126210,1715844636722,-151.0,0.00018002,2]
[327126211,1715844636731,-151.0,0.00018002,2]
[327126212,1715844636740,-3223.911068,0.00018002,2]
[327126213,1715844636751,-151.0,0.00018002,2]
[327126214,1715844636760,-3223.911068,0.00018002,2]
[327126215,1715844636770,-823.03,0.00018002,2]
[327126216,1715844636779,-151.0,0.00018002,2]
[327126217,1715844636788,-3223.911068,0.00018002,2]
[327126218,1715844636798,-151.0,0.00018002,2]
[327126219,1715844636807,-151.0,0.00018002,2]
[327126220,1715844636817,-3223.911068,0.00018002,2]
[327126221,1715844636826,-607.21810661,0.00018002,2]
[327127037,1715844657818,641.94,0.00010959,2]
[327127039,1715844695626,250.0,0.00017004,2]
[327127040,1715844705406,942.22196607,0.00015,2]
[327127041,1715844713975,42963.00666093,9.999e-05,2]
[327127042,1715844714013,13080.0,9.999e-05,2]
[327127043,1715844714035,256.19874891,9.999e-05,2]
[327127044,1715844714063,3084.29670834,9.999e-05,2]
[327127046,1715844906487,-20239.26546952,0.00017897,2]
[327127047,1715844906512,-2120.73453048,0.00017898,2]
[327127049,1715844972779,690.00913944,9.999e-05,2]
[327127050,1715845077797,202.831373,0.00016973,2]
[327127051,1715845162255,521.13198345,9.999e-05,2]
[327127052,1715845215215,154.82968734,9.999e-05,2]
[327127053,1715845384931,1445.66089265,9.999e-05,2]
[327127054,1715845420230,154.82968734,9.999e-05,2]
[327127056,1715845571492,767.36,0.00010959,2]
[327127061,1715845698144,211.85506162,0.00016196,2]
[327127066,1715845767175,-930.78580745,0.00017095,2]
[327127067,1715845767204,-2061.98666994,0.00017559,2]
[327127068,1715845767234,-162.32200811,0.00017582,2]
[327127069,1715845767262,-416.87621729,0.00017587,2]
[327127070,1715845767291,-294.31053376,0.00017713,2]
[327127071,1715845767322,-26199.69640132,0.00017791,2]
[327127072,1715845767350,-256.49794386,0.00017898,2]
[327127073,1715845767378,-208.95851258,0.00017996,2]
[327127074,1715845767405,-225.28516085,0.00017996,2]
[327127075,1715845767432,-160.79929937,0.00017996,2]
[327127076,1715845767460,-466.84616224,0.00017996,2]
[327127077,1715845767486,-1221.45,0.00017996,2]
[327127078,1715845767515,-500.0,0.00017996,2]
[327127079,1715845767542,-500.0,0.00017996,2]
[327127080,1715845767570,-177.45,0.00017996,2]
[327127081,1715845767601,-500.0,0.00017996,2]
[327127082,1715845767627,-500.0,0.00017996,2]
[327127083,1715845767654,-425.95119997,0.00017996,2]
[327127084,1715845767681,-500.0,0.00017996,2]
[327127085,1715845767707,-500.0,0.00017996,2]
[327127086,1715845767734,-500.0,0.00017996,2]
[327127087,1715845767759,-967.51,0.00017996,2]
[327127088,1715845767790,-497.1244395,0.00017996,2]
[327127094,1715845810930,521.13198345,9.999e-05,2]
[327127119,1715845832399,-13319.63032891,0.00017698,2]
[327127120,1715845832408,-2592.81425704,0.00017798,2]
[327127121,1715845832417,-201.84766335,0.00017897,2]
[327127122,1715845832426,-201.84766332,0.00017897,2]
[327127123,1715845832436,-201.84766332,0.00017898,2]
[327127124,1715845832445,-201.84766332,0.00017898,2]
[327127125,1715845832454,-201.84766332,0.00017898,2]
[327127126,1715845832463,-2050.96330563,0.00017995,2]
[327127127,1715845832472,-1997.1914164,0.00017995,2]
[327127128,1715845832481,-500.0,0.00017995,2]
[327127129,1715845832636,-500.0,0.00017995,2]
[327127130,1715845832646,-1291.75,0.00017995,2]
[327127131,1715845832655,-2.8755605,0.00017996,2]
[327127132,1715845832664,-500.0,0.00017996,2]
[327127133,1715845832673,-2148.21,0.00017996,2]
[327127134,1715845832682,-650.71,0.00017996,2]
[327127135,1715845832691,-500.0,0.00017996,2]
[327127136,1715845832700,-500.0,0.00017996,2]
[327127137,1715845832709,-989.38,0.00017996,2]
[327127138,1715845832719,-561.64,0.00017996,2]
[327127139,1715845832727,-500.0,0.00017996,2]
[327127140,1715845832738,-721.77,0.00017996,2]
[327127141,1715845832746,-500.0,0.00017996,2]
[327127142,1715845832756,-690.75,0.00017996,2]
[327127143,1715845832766,-500.0,0.00017996,2]
[327127144,1715845832777,-843.39,0.00017996,2]
[327127145,1715845832786,-500.0,0.00017996,2]
[327127146,1715845832795,-500.0,0.00017996,2]
[327127147,1715845832804,-500.0,0.00017996,2]
[327127148,1715845832814,-500.0,0.00017996,2]
[327127149,1715845832823,-500.0,0.00017996,2]
[327127150,1715845832832,-500.0,0.00017996,2]
[327127151,1715845832841,-500.0,0.00017996,2]
[327127152,1715845832851,-500.0,0.00017996,2]
[327127153,1715845832860,-500.0,0.00017996,2]
[327127154,1715845832869,-1033.65,0.00017996,2]
[327127155,1715845832880,-2784.51,0.00017996,2]
[327127156,1715845832889,-617.57,0.00017996,2]
[327127157,1715845832899,-500.0,0.00017996,2]
[327127158,1715845832907,-2490.51,0.00017996,2]
[327127159,1715845832917,-159.66382287,0.00017996,2]
[327127160,1715845832926,-500.0,0.00017996,2]
[327127161,1715845832937,-787.99,0.00017996,2]
[327127162,1715845832948,-262.45545602,0.00017997,2]
[327127163,1715845832959,-420.82889366,0.00017997,2]
[327127164,1715845832969,-282.22276634,0.00017997,2]
[327127165,1715845832979,-670.50184522,0.00017997,2]
[327127166,1715845832989,-3791.15037401,0.00017997,2]
[327127167,1715845832998,-191.5961783,0.00017997,2]
[327127168,1715845833007,-820.47744241,0.00017997,2]
[327127169,1715845833019,-500.0,0.00017997,2]
[327127170,1715845833029,-500.0,0.00017997,2]
[327127171,1715845833039,-631.31,0.00017997,2]
[327127172,1715845833048,-500.98971911,0.00017997,2]
[327127173,1715845833057,-2321.67,0.00017997,2]
[327127174,1715845833066,-755.13,0.00017997,2]
[327127175,1715845833075,-838.47,0.00017997,2]
[327127176,1715845833085,-500.0,0.00017997,2]
[327127177,1715845833095,-988.45,0.00017997,2]
[327127178,1715845833104,-500.0,0.00017997,2]
[327127179,1715845833114,-1602.09,0.00017997,2]
[327127180,1715845833124,-2937.78,0.00017997,2]
[327127181,1715845833133,-500.0,0.00017997,2]
[327127182,1715845833142,-470.27180354,0.00017997,2]
[327127183,1715845833151,-500.0,0.00017997,2]
[327127184,1715845833161,-500.0,0.00017997,2]
[327127185,1715845833171,-1064.25,0.00017997,2]
[327127186,1715845833180,-500.0,0.00017997,2]
[327127187,1715845833189,-779.9,0.00017997,2]
[327127188,1715845833199,-15504.78,0.00017997,2]
[327127189,1715845833208,-2228.77,0.00017997,2]
[327127190,1715845833217,-2948.96,0.00017997,2]
[327127191,1715845833226,-500.0,0.00017997,2]
[327127192,1715845833236,-1576.53,0.00017997,2]
[327127193,1715845833246,-500.0,0.00017997,2]
[327127194,1715845833255,-500.0,0.00017997,2]
[327127195,1715845833266,-21479.12,0.00017997,2]
[327127196,1715845833275,-500.0,0.00017997,2]
[327127197,1715845833285,-1295.35,0.00017997,2]
[327127198,1715845833294,-4248.97,0.00017997,2]
[327127199,1715845833303,-7715.66,0.00017997,2]
[327127200,1715845833312,-10244.91,0.00017997,2]
[327127201,1715845833322,-10244.91,0.00017997,2]
[327127202,1715845833331,-1465.34,0.00017997,2]
[327127203,1715845833340,-6494.87900777,0.00017997,2]
[327127204,1715845833353,-939.12,0.00017997,2]
[327127205,1715845833396,-2216.87099223,0.00017997,2]
[327127206,1715845833406,-4024.25,0.00017997,2]
[327127207,1715845833416,-1296.13,0.00017997,2]
[327127208,1715845833426,-897.17,0.00017997,2]
[327127209,1715845833435,-707.55,0.00017997,2]
[327127210,1715845833444,-500.0,0.00017997,2]
[327127211,1715845833453,-500.0,0.00017997,2]
[327127212,1715845833462,-500.0,0.00017997,2]
[327127213,1715845833471,-500.0,0.00017997,2]
[327127214,1715845833481,-682.11,0.00017997,2]
[327127215,1715845833490,-1064.39,0.00017997,2]
[327127216,1715845833499,-5834.02,0.00017997,2]
[327127217,1715845833508,-5262.67,0.00017997,2]
[327127218,1715845833517,-500.0,0.00017997,2]
[327127219,1715845833526,-1369.75,0.00017997,2]
[327127220,1715845833535,-500.0,0.00017997,2]
[327127221,1715845833544,-500.0,0.00017997,2]
[327127222,1715845833553,-563.13,0.00017997,2]
[327127223,1715845833562,-500.0,0.00017997,2]
[327127224,1715845833571,-576.4,0.00017997,2]
[327127225,1715845833580,-1484.15,0.00017997,2]
[327127226,1715845833589,-781.41070464,0.00017998,2]
[327127227,1715845833598,-3236.77449698,0.00017998,2]
[327127228,1715845833607,-811.21,0.00017998,2]
[327127229,1715845833616,-500.0,0.00017998,2]
[327127230,1715845833625,-500.0,0.00017998,2]
[327127231,1715845833634,-689.45,0.00017998,2]
[327127232,1715845833643,-689.45,0.00017998,2]
[327127233,1715845833652,-689.45,0.00017998,2]
[327127234,1715845833661,-689.45,0.00017998,2]
[327127235,1715845833670,-689.45,0.00017998,2]
[327127236,1715845833678,-1306.59,0.00017998,2]
[327127237,1715845833688,-500.0,0.00017998,2]
[327127238,1715845833696,-500.0,0.00017998,2]
[327127239,1715845833706,-1533.33,0.00017998,2]
[327127240,1715845833715,-500.0,0.00017998,2]
[327127241,1715845833724,-500.0,0.00017998,2]
[327127242,1715845833733,-512.8691093,0.00017998,2]
[327127243,1715845833742,-3148.99,0.00017998,2]
[327127244,1715845833751,-5562.59,0.00017998,2]
[327127245,1715845833759,-1818.59,0.00017998,2]
[327127246,1715845833769,-500.0,0.00017998,2]
[327127247,1715845833778,-592.99,0.00017998,2]
[327127248,1715845833786,-815.61,0.00017998,2]
[327127249,1715845833795,-500.0,0.00017998,2]
[327127250,1715845833804,-500.0,0.00017998,2]
[327127251,1715845833813,-4213.25,0.00017998,2]
[327127252,1715845833822,-500.0,0.00017998,2]
[327127253,1715845833831,-8588.73,0.00017998,2]
[327127254,1715845833840,-500.0,0.00017998,2]
[327127255,1715845833849,-3466.54,0.00017998,2]
[327127256,1715845833858,-7487.2,0.00017998,2]
[327127257,1715845833868,-500.0,0.00017998,2]
[327127258,1715845833877,-500.0,0.00017998,2]
[327127259,1715845833887,-500.0,0.00017998,2]
[327127260,1715845833896,-598.23,0.00017998,2]
[327127261,1715845833905,-629.55,0.00017998,2]
[327127262,1715845833915,-1532.23,0.00017998,2]
[327127263,1715845833925,-2152.9,0.00017998,2]
[327127264,1715845833940,-1809.54,0.00017998,2]
[327127265,1715845833949,-727.22,0.00017998,2]
[327127266,1715845833960,-500.0,0.00017998,2]
[327127267,1715845833969,-608.81,0.00017998,2]